bitfinex/quotes_SOLUSD_20241022
["timestamp","ask_amount","ask_price","bid_price","bid_amount"]
[1729557293015,6.0964,164.04,163.91,15.5937]
[1729557293219,6.0967,164.03,163.91,15.5937]
[1729557293598,6.0967,164.03,163.92,20.0]
[1729557293798,6.0969,164.02,163.92,20.0]
[1729557294112,15.2335,164.12,163.94,20.0]
[1729557294325,6.095,164.07,163.97,23.776884]
[1729557294534,6.095,164.07,163.96,20.0]
[1729557294819,6.095,164.07,163.97,23.776884]
[1729557295212,15.2335,164.12,163.99,23.776884]
[1729557295415,6.0949,164.08,163.99,23.776884]
[1729557296714,15.2335,164.12,163.99,23.776884]
[1729557296917,6.0942,164.09,163.99,23.776884]
[1729557298019,15.2335,164.12,163.91,15.7937]
[1729557298020,6.0971,164.01,163.91,15.5937]
[1729557298317,6.0968,164.03,163.91,15.5937]
[1729557298699,6.0968,164.02,163.91,15.5937]
[1729557298901,6.0956,164.06,163.91,15.5937]
[1729557299211,6.0956,164.06,163.92,20.0]
[1729557299410,0.1,164.11,163.92,20.0]
[1729557299601,6.0971,164.02,163.91,15.5937]
[1729557299799,0.1,164.09,163.91,15.5937]
[1729557300009,0.1,164.09,163.85,15.0234]
[1729557300010,6.0982,163.99,163.85,15.0234]
[1729557300319,30.0,163.98,163.85,13.5234]
[1729557300728,6.0986,163.97,163.85,13.5234]
[1729557300926,36.0983,163.98,163.85,13.5234]
[1729557301136,30.0,163.98,163.85,13.5234]
[1729557301425,30.0,163.96,163.88,20.0]
[1729557301628,6.0955,164.06,163.93,20.0]
[1729557301811,6.0958,164.05,163.96,23.776884]
[1729557302155,6.0957,164.05,163.96,23.776884]
[1729557302725,6.0945,164.08,163.96,23.776884]
[1729557302901,6.2139,164.19,163.99,20.0]
[1729557303105,6.0924,164.14,164.03,20.0]
[1729557303409,6.0924,164.14,164.04,23.776884]
[1729557305122,6.2139,164.19,164.06,23.776884]
[1729557305321,6.0913,164.17,164.06,23.776884]
[1729557305714,6.2139,164.19,164.06,23.776884]
[1729557305921,11.43929648,164.18,164.01,23.776884]
[1729557306223,35.229,164.16,164.01,23.776884]
[1729557306400,4.39995064,164.15,164.01,23.776884]
[1729557306601,6.0923,164.14,164.0,23.776884]
[1729557306825,6.0918,164.16,164.0,23.776884]
[1729557307008,6.2139,164.19,164.03,23.776884]
[1729557307208,6.0917,164.16,164.03,23.776884]
[1729557307810,6.0912,164.17,164.05,23.776884]
[1729557308101,7.3453358,164.25,164.07,23.776884]
[1729557308301,4.40040846,164.24,164.07,23.776884]
[1729557308521,4.40040846,164.24,163.99,16.4038]
[1729557308522,0.1,164.19,163.99,16.4038]
[1729557308706,4.3988259,164.18,163.99,16.4038]
[1729557308900,30.0,164.07,163.99,16.4038]
[1729557310403,30.0,164.07,163.93,15.8289]
[1729557310604,6.0953,164.06,163.93,15.8289]
[1729557310818,6.0964,164.04,163.93,15.8289]
[1729557311028,30.0,164.05,163.93,15.8289]
[1729557311209,36.0959,164.05,163.93,15.8289]
[1729557311727,30.0,164.03,163.94,20.0]
[1729557312130,30.0,164.03,163.95,23.776884]
[1729557312925,30.0,164.03,163.97,23.776884]
[1729557313125,6.0945,164.09,163.99,23.776884]
[1729557313623,6.631,164.12,163.99,23.776884]
[1729557313624,6.0945,164.08,163.99,23.776884]
[1729557314327,65.7009,164.11,163.93,15.8289]
[1729557314519,6.631,164.12,163.93,15.8289]
[1729557314916,21.3284,164.1,163.93,15.8289]
[1729557315119,6.631,164.12,163.93,15.8289]
[1729557315313,6.0945,164.09,163.93,62.43124307]
[1729557315509,6.631,164.12,163.93,15.8289]
[1729557315510,20.0,164.11,163.93,15.8289]
[1729557315729,6.631,164.12,163.94,20.0]
[1729557315930,6.0952,164.07,163.94,20.0]
[1729557316225,20.0,164.08,163.93,15.8289]
[1729557316417,30.0,164.02,163.93,15.8289]
[1729557316611,6.0956,164.06,163.93,15.8289]
[1729557316808,20.0,164.1,163.93,15.8289]
[1729557317027,6.0949,164.07,163.93,15.8289]
[1729557317215,6.631,164.12,163.93,15.8289]
[1729557317419,6.0944,164.09,163.93,15.8289]
[1729557317630,6.0944,164.09,163.94,43.776884]
[1729557318212,6.631,164.12,163.94,43.776884]
[1729557318412,6.0938,164.1,163.94,43.776884]
[1729557318630,6.0942,164.09,163.94,43.776884]
[1729557318809,6.096,164.05,163.94,20.0]
[1729557319010,20.0,164.11,163.94,20.0]
[1729557319215,6.0952,164.07,163.94,20.0]
[1729557319523,0.1,164.08,163.85,23.06]
[1729557319726,6.0975,164.0,163.85,23.06]
[1729557319921,30.0,164.01,163.86,46.70234307]
[1729557320129,30.0,164.01,163.86,48.09726207]
[1729557320821,6.0977,164.0,163.86,1.394919]
[1729557321131,36.0982,163.99,163.86,1.394919]
[1729557321333,30.0,163.99,163.86,1.394919]
[1729557321551,30.0,163.99,163.85,16.4913]
[1729557321714,35.2462,163.98,163.79,15.8847]
[1729557321917,20.1,163.98,163.79,15.8847]
[1729557322135,30.0,163.96,163.79,15.8847]
[1729557322318,6.1018,163.89,163.79,15.8847]
[1729557322843,30.0,163.96,163.79,15.8847]
[1729557323030,6.1002,163.93,163.79,15.8847]
[1729557323230,30.0,163.88,163.79,15.8847]
[1729557323428,6.1005,163.92,163.79,15.8847]
[1729557323745,6.1005,163.92,163.8,20.0]
[1729557324324,20.0,163.98,163.8,20.0]
[1729557324534,6.0998,163.94,163.85,23.776884]
[1729557325047,6.1844,163.99,163.88,20.0]
[1729557325340,6.6237,164.05,163.91,23.776884]
[1729557325530,6.1001,163.94,163.82,20.0]
[1729557325841,6.0975,164.0,163.87,23.776884]
[1729557326021,6.6237,164.05,163.89,23.776884]
[1729557326223,21.8635,164.05,163.91,23.776884]
[1729557326536,15.6945,164.1,163.96,20.0]
[1729557326862,6.4584,164.11,163.99,23.776884]
[1729557326863,6.0942,164.09,163.99,23.776884]
[1729557327548,6.4584,164.11,163.99,23.776884]
[1729557327549,6.0938,164.1,163.99,23.776884]
[1729557327845,6.097,164.02,163.93,23.776884]
[1729557328544,15.2355,164.09,163.96,20.0]
[1729557328722,6.0985,163.98,163.85,15.4984]
[1729557329228,30.0,163.97,163.85,15.4984]
[1729557329432,6.0994,163.96,163.85,15.4984]
[1729557329632,6.0994,163.95,163.85,15.4984]
[1729557329827,30.0,163.97,163.85,15.4984]
[1729557330134,6.1009,163.91,163.78,62.84934307]
[1729557330329,6.102,163.88,163.78,16.247]
[1729557330529,6.1016,163.9,163.78,16.247]
[1729557330937,20.0,163.94,163.78,16.247]
[1729557331130,7.9096696,163.94,163.71,22.6803]
[1729557331434,21.3609,163.85,163.68,0.6063358]
[1729557331641,6.1046,163.81,163.68,0.6063358]
[1729557332020,30.0,163.87,163.73,46.60234307]
[1729557332021,36.1026,163.87,163.73,46.60234307]
[1729557332235,30.0,163.87,163.72,15.8536]
[1729557332445,6.1035,163.84,163.72,15.8536]
[1729557332642,6.1035,163.84,163.73,20.0]
[1729557333250,6.1035,163.84,163.72,15.8536]
[1729557333251,6.1048,163.81,163.72,15.8536]
[1729557333749,20.0,163.85,163.69,1.39636769]
[1729557333928,36.1053,163.8,163.69,1.39636769]
[1729557334124,30.0,163.8,163.69,1.39636769]
[1729557334432,6.1055,163.79,163.68,0.6063358]
[1729557334955,36.1057,163.78,163.68,0.6063358]
[1729557335246,6.1069,163.75,163.68,0.6063358]
[1729557335546,30.0,163.78,163.68,0.6063358]
[1729557335727,6.1054,163.79,163.68,0.6063358]
[1729557335929,6.1058,163.78,163.68,0.6063358]
[1729557336249,15.2603,163.83,163.68,0.6063358]
[1729557336439,15.2603,163.83,163.69,23.776884]
[1729557336639,30.513,163.87,163.71,23.776884]
[1729557336640,15.2562,163.87,163.71,23.776884]
[1729557336952,6.1032,163.85,163.77,23.776884]
[1729557337252,6.0851,163.91,163.77,23.776884]
[1729557337451,6.1039,163.83,163.77,23.776884]
[1729557337660,15.2541,163.89,163.77,23.776884]
[1729557338238,6.102,163.88,163.77,23.776884]
[1729557338445,6.0851,163.91,163.77,23.776884]
[1729557338651,6.1028,163.86,163.77,23.776884]
[1729557338846,15.2506,163.93,163.79,23.776884]
[1729557339170,6.1017,163.89,163.81,23.776884]
[1729557339545,6.1004,163.93,163.82,20.0]
[1729557339855,6.1009,163.91,163.83,23.776884]
[1729557340053,6.5802,163.97,163.83,23.776884]
[1729557340251,6.102,163.88,163.83,23.776884]
[1729557341267,50.4952,163.96,163.72,62.14514307]
[1729557341566,20.0,163.89,163.72,15.5428]
[1729557341754,6.1047,163.81,163.72,15.5428]
[1729557341957,15.255,163.88,163.72,15.5428]
[1729557342140,6.1034,163.85,163.72,15.5428]
[1729557342861,15.255,163.88,163.73,20.0]
[1729557343264,6.1036,163.84,163.73,20.0]
[1729557344171,20.0,163.91,163.74,23.776884]
[1729557344352,6.1032,163.85,163.74,23.776884]
[1729557344546,6.1035,163.84,163.74,23.776884]
[1729557345169,6.1043,163.82,163.73,20.0]
[1729557345357,30.0,163.8,163.73,20.0]
[1729557345548,36.1052,163.8,163.73,20.0]
[1729557346978,6.1052,163.8,163.74,23.776884]
[1729557347368,6.1054,163.79,163.74,23.776884]
[1729557348274,6.1054,163.79,163.73,23.776884]
[1729557349165,30.5101,163.88,163.73,23.776884]
[1729557349375,15.2598,163.83,163.73,23.776884]
[1729557349677,6.1057,163.78,163.73,23.776884]
[1729557350751,30.5175,163.84,163.68,0.6063358]
[1729557350950,30.0,163.77,163.68,0.6063358]
[1729557351260,15.2671,163.75,163.68,0.6063358]
[1729557351589,6.1087,163.7,163.68,0.6063358]
[1729557351757,30.0,163.77,163.68,0.6063358]
[1729557351956,60.531,163.77,163.68,0.6063358]
[1729557352166,6.1076,163.73,163.68,0.6063358]
[1729557352473,6.108,163.72,163.68,0.6063358]
[1729557352973,30.0,163.77,163.68,0.6063358]
[1729557353147,15.2662,163.76,163.69,23.776884]
[1729557353352,6.1087,163.7,163.69,23.776884]
[1729557353653,6.1083,163.71,163.69,23.776884]
[1729557354159,6.1087,163.7,163.68,0.6063358]
[1729557354362,6.1091,163.69,163.68,0.6063358]
[1729557354753,36.1091,163.69,163.68,0.6063358]
[1729557355667,30.0,163.69,163.68,0.6063358]
[1729557355874,30.5315,163.77,163.68,0.6063358]
[1729557356253,15.2652,163.78,163.69,23.776884]
[1729557356458,6.1071,163.75,163.69,23.776884]
[1729557356673,6.1072,163.74,163.69,23.776884]
[1729557356976,6.1068,163.75,163.69,23.776884]
[1729557357772,6.1087,163.7,163.68,0.6063358]
[1729557357986,6.1091,163.69,163.68,0.6063358]
[1729557358476,36.1091,163.69,163.68,0.6063358]
[1729557359972,30.0,163.69,163.68,0.6063358]
[1729557360274,30.0,163.69,163.68,24.3832198]
[1729557360478,30.0,163.69,163.68,0.6063358]
[1729557360685,36.1091,163.69,163.68,0.6063358]
[1729557361095,30.0,163.69,163.68,0.6063358]
[1729557362183,15.2668,163.76,163.68,0.6063358]
[1729557362360,6.1085,163.71,163.68,0.6063358]
[1729557362766,30.0,163.69,163.68,0.6063358]
[1729557363258,30.0,163.69,163.58,16.2212]
[1729557363767,30.0,163.67,163.58,16.2212]
[1729557364082,30.0,163.67,163.59,46.60234307]
[1729557364254,30.0,163.67,163.6,28.70245348]
[1729557364578,6.0582,163.79,163.61,43.776884]
[1729557364781,6.1091,163.69,163.61,43.776884]
[1729557364997,21.37,163.78,163.61,43.776884]
[1729557365280,6.1091,163.69,163.61,43.776884]
[1729557365856,6.1091,163.69,163.61,23.776884]
[1729557366357,6.1111,163.64,163.53,6.27622564]
[1729557366678,30.0,163.66,163.52,21.9828]
[1729557367056,6.1114,163.63,163.52,21.9828]
[1729557367468,30.0,163.62,163.52,21.9828]
[1729557367668,36.1117,163.62,163.52,21.9828]
[1729557368155,30.0,163.62,163.53,23.776884]
[1729557368961,6.1122,163.61,163.52,21.9828]
[1729557369155,6.1125,163.6,163.52,15.363]
[1729557369357,6.1129,163.59,163.51,0.6063358]
[1729557369688,30.0,163.58,163.51,0.6063358]
[1729557370667,6.1154,163.52,163.51,0.6063358]
[1729557370859,30.0,163.52,163.51,0.6063358]
[1729557373483,6.1169,163.48,163.47,10.0]
[1729557373664,36.1169,163.48,163.47,10.0]
[1729557374378,30.0,163.48,163.47,10.0]
[1729557375179,36.1169,163.48,163.47,10.0]
[1729557375967,30.0,163.48,163.47,10.0]
[1729557376785,6.1478,163.6,163.47,10.0]
[1729557377465,6.1478,163.6,163.48,23.776884]
[1729557377664,6.1132,163.58,163.48,23.776884]
[1729557377861,21.4295,163.6,163.48,23.776884]
[1729557378284,6.112,163.62,163.48,23.776884]
[1729557378470,15.2765,163.65,163.48,23.776884]
[1729557378859,6.3478,163.66,163.48,23.776884]
[1729557379192,6.3478,163.66,163.47,16.3308]
[1729557379193,15.283,163.58,163.47,10.0]
[1729557379487,30.0,163.49,163.47,10.0]
[1729557379866,36.1166,163.49,163.47,10.0]
[1729557380666,30.0,163.49,163.47,10.0]
[1729557380866,36.1166,163.49,163.47,10.0]
[1729557381291,30.0,163.49,163.47,10.0]
[1729557381590,6.1169,163.48,163.47,10.0]
[1729557381785,36.1169,163.48,163.47,10.0]
[1729557382588,30.0,163.48,163.47,10.0]
[1729557383400,6.5527,163.6,163.47,33.776884]
[1729557383691,0.1,163.59,163.47,10.0]
[1729557383893,15.283,163.58,163.47,10.0]
[1729557384272,6.114,163.56,163.48,23.776884]
[1729557384461,6.1139,163.57,163.48,23.776884]
[1729557384962,30.6642,163.59,163.47,10.0]
[1729557385182,30.0,163.49,163.47,10.0]
[1729557385387,30.0,163.49,163.35,7.2660358]
[1729557385590,36.1167,163.49,163.35,7.2660358]
[1729557385888,30.0,163.49,163.35,7.2660358]
[1729557386079,30.0,163.48,163.35,7.2660358]
[1729557387286,30.0,163.48,163.38,23.776884]
[1729557387496,30.0,163.48,163.44,23.776884]
[1729557388594,6.4527,163.6,163.44,23.776884]
[1729557388792,6.4527,163.6,163.47,23.776884]
[1729557389492,6.1132,163.58,163.47,23.776884]
[1729557389666,6.4527,163.6,163.47,23.776884]
[1729557389995,6.1135,163.58,163.47,23.776884]
[1729557390486,6.1137,163.57,163.47,23.776884]
[1729557390876,6.1151,163.53,163.47,23.776884]
[1729557391072,15.2821,163.59,163.41,15.7758]
[1729557391073,20.0,163.59,163.41,15.7758]
[1729557391284,20.1,163.57,163.41,15.7758]
[1729557391468,20.0,163.55,163.41,15.7758]
[1729557391674,6.117,163.48,163.41,15.7758]
[1729557391995,0.1,163.56,163.35,13.53832494]
[1729557391996,15.2877,163.53,163.35,22.5149358]
[1729557392292,6.1185,163.44,163.35,15.8552358]
[1729557392590,36.5718,163.46,163.35,0.6063358]
[1729557392984,6.1199,163.4,163.35,0.6063358]
[1729557393790,30.0,163.43,163.35,0.6063358]
[1729557394179,30.0,163.39,163.35,0.6063358]
[1729557394682,30.0,163.39,163.36,46.72039846]
[1729557395009,6.1184,163.45,163.35,0.6063358]
[1729557395373,6.3172,163.52,163.36,23.776884]
[1729557395588,6.1169,163.48,163.36,23.776884]
[1729557395888,6.3172,163.52,163.37,46.72039846]
[1729557396101,12.4329,163.52,163.38,23.776884]
[1729557396469,6.3172,163.52,163.38,23.776884]
[1729557396668,6.1148,163.54,163.41,23.776884]
[1729557397175,16.5356,163.62,163.44,23.776884]
[1729557397374,6.1133,163.58,163.44,23.776884]
[1729557397892,6.1125,163.6,163.44,23.776884]
[1729557398092,6.1129,163.59,163.44,23.776884]
[1729557398395,6.1124,163.61,163.46,46.72039846]
[1729557398607,6.1102,163.66,163.5,23.776884]
[1729557398895,6.1109,163.65,163.5,23.776884]
[1729557399384,6.111,163.64,163.5,23.776884]
[1729557399581,6.5855,163.68,163.53,23.776884]
[1729557399783,6.11,163.67,163.56,23.776884]
[1729557400094,0.2,163.73,163.59,23.776884]
[1729557400095,0.1,163.73,163.59,23.776884]
[1729557400297,6.11,163.67,163.53,23.776884]
[1729557400476,23.80282236,163.72,163.56,23.776884]
[1729557400678,6.5916,163.74,163.58,46.72039846]
[1729557400897,6.1078,163.73,163.59,23.776884]
[1729557401100,6.1081,163.72,163.59,23.776884]
[1729557402005,6.0916,163.74,163.62,23.776884]
[1729557402504,6.1072,163.74,163.62,23.776884]
[1729557404100,6.1063,163.77,163.65,23.776884]
[1729557404312,6.4875,163.79,163.65,23.776884]
[1729557404477,1.05305638,163.85,163.71,23.776884]
[1729557404678,6.1033,163.85,163.73,46.72039846]
[1729557404894,6.1036,163.84,163.74,23.776884]
[1729557405097,6.1039,163.83,163.74,23.776884]
[1729557405503,6.1034,163.85,163.74,23.776884]
[1729557406085,6.4875,163.86,163.74,23.776884]
[1729557406505,6.1038,163.84,163.74,23.776884]
[1729557406710,6.4875,163.86,163.74,23.776884]
[1729557406916,15.2549,163.89,163.74,23.776884]
[1729557406917,6.6644358,163.92,163.74,23.776884]
[1729557407112,15.3522,163.91,163.74,23.776884]
[1729557407410,6.1043,163.82,163.74,23.776884]
[1729557407983,6.1023,163.87,163.74,23.776884]
[1729557408396,6.1028,163.86,163.74,23.776884]
[1729557408911,0.1,163.9,163.74,23.776884]
[1729557409207,6.1023,163.88,163.74,23.776884]
[1729557409432,15.2522,163.91,163.74,23.776884]
[1729557409584,0.2,163.91,163.74,23.776884]
[1729557409789,6.1038,163.84,163.74,23.776884]
[1729557409983,6.8644358,163.92,163.7,16.5678]
[1729557409984,6.1062,163.77,163.7,16.5678]
[1729557410295,15.2606,163.82,163.64,15.2981]
[1729557410494,20.0,163.81,163.64,15.2981]
[1729557410693,6.1061,163.77,163.64,15.2981]
[1729557410887,0.2,163.84,163.64,15.2981]
[1729557411099,6.1054,163.79,163.64,15.2981]
[1729557411303,6.1048,163.81,163.67,46.72039846]
[1729557411504,6.1048,163.81,163.68,23.776884]
[1729557411988,20.0,163.86,163.68,23.776884]
[1729557412493,6.1054,163.79,163.68,23.776884]
[1729557412807,6.1057,163.79,163.68,23.776884]
[1729557414828,0.1,163.85,163.68,23.776884]
[1729557415229,6.1062,163.77,163.68,23.776884]
[1729557416620,6.1052,163.8,163.68,23.776884]
[1729557417020,15.2597,163.83,163.68,23.776884]
[1729557417021,6.1054,163.79,163.68,23.776884]
[1729557417235,20.0,163.82,163.68,23.776884]
[1729557417532,26.2205,163.8,163.64,15.2981]
[1729557417825,6.1089,163.7,163.58,15.0045]
[1729557418010,6.1095,163.68,163.58,15.0045]
[1729557418210,0.2,163.76,163.58,15.0045]
[1729557418411,15.2704,163.72,163.58,15.0045]
[1729557419331,6.1094,163.69,163.59,23.776884]
[1729557419507,0.1,163.75,163.58,15.0045]
[1729557419908,33.3202768,163.78,163.58,15.0045]
[1729557419909,0.1,163.73,163.58,15.0045]
[1729557420118,0.1,163.73,163.52,52.83689846]
[1729557420311,15.2709,163.71,163.52,52.83689846]
[1729557420526,21.3805,163.7,163.52,52.83689846]
[1729557420834,6.111,163.64,163.52,6.1165]
[1729557421256,6.2026,163.68,163.52,6.1165]
[1729557421410,6.113,163.59,163.51,16.329]
[1729557421613,6.1124,163.61,163.51,16.329]
[1729557421938,6.1114,163.63,163.51,16.329]
[1729557422107,6.3026,163.68,163.51,16.329]
[1729557422108,0.1,163.66,163.51,16.329]
[1729557422316,21.3883,163.64,163.47,6.1165]
[1729557422532,15.2774,163.64,163.47,6.1165]
[1729557422838,6.1132,163.58,163.47,6.1165]
[1729557423413,50.55,163.67,163.47,6.1165]
[1729557423616,50.55,163.67,163.48,23.776884]
[1729557424333,20.0,163.65,163.48,23.776884]
[1729557424520,0.1,163.66,163.47,6.1165]
[1729557424722,0.1,163.65,163.47,6.1165]
[1729557425033,6.1132,163.58,163.47,6.1165]
[1729557425224,20.0,163.64,163.45,61.72859846]
[1729557425225,6.1138,163.57,163.45,14.5082]
[1729557425836,20.0,163.61,163.45,14.5082]
[1729557426032,6.1132,163.58,163.45,14.5082]
[1729557426237,6.1144,163.55,163.45,14.5082]
[1729557426436,35.2825,163.59,163.45,14.5082]
[1729557426617,20.0,163.57,163.45,14.5082]
[1729557426820,6.115,163.54,163.45,14.5082]
[1729557427139,6.1155,163.52,163.42,6.3927]
[1729557427519,20.0,163.57,163.42,6.3927]
[1729557427715,15.283,163.58,163.42,6.3927]
[1729557427917,6.1144,163.55,163.42,53.11309846]
[1729557428122,6.5013,163.57,163.37,6.4075]
[1729557428337,20.0,163.56,163.37,6.4075]
[1729557428556,6.1166,163.49,163.37,6.4075]
[1729557429059,6.1162,163.5,163.37,6.4075]
[1729557429359,6.1173,163.47,163.37,6.4075]
[1729557429560,20.0,163.51,163.37,6.4075]
[1729557429862,6.1178,163.46,163.37,6.4075]
[1729557430034,20.0,163.51,163.37,6.4075]
[1729557430239,6.1177,163.46,163.37,6.4075]
[1729557430873,1.05472452,163.54,163.38,23.776884]
[1729557431035,15.286,163.55,163.4,23.776884]
[1729557431238,6.1177,163.46,163.4,23.776884]
[1729557431456,6.4013,163.57,163.37,6.4075]
[1729557431759,6.116,163.51,163.37,6.4075]
[1729557431975,6.116,163.51,163.39,46.72039846]
[1729557432139,15.2849,163.56,163.39,46.72039846]
[1729557432339,6.1154,163.52,163.39,46.72039846]
[1729557432647,15.2849,163.56,163.4,23.776884]
[1729557432857,6.4013,163.57,163.42,46.72039846]
[1729557433036,6.4013,163.57,163.43,23.776884]
[1729557433037,6.1147,163.54,163.43,23.776884]
[1729557433758,15.2814,163.6,163.46,23.776884]
[1729557433759,6.1144,163.55,163.46,23.776884]
[1729557433937,15.2814,163.6,163.46,23.776884]
[1729557434143,6.1143,163.56,163.46,23.776884]
[1729557434459,0.1,163.61,163.46,23.776884]
[1729557434758,6.1151,163.53,163.46,23.776884]
[1729557435461,15.2821,163.59,163.46,23.776884]
[1729557435760,6.1151,163.53,163.46,23.776884]
[1729557436966,6.1142,163.56,163.46,23.776884]
[1729557437144,6.1135,163.57,163.46,23.776884]
[1729557439941,6.3137,163.73,163.57,46.72039846]
[1729557440139,6.1121,163.61,163.51,46.72039846]
[1729557440364,30.5436,163.7,163.51,46.72039846]
[1729557440365,6.1116,163.63,163.51,46.72039846]
[1729557440540,6.1117,163.62,163.51,46.72039846]
[1729557440946,6.1121,163.61,163.51,46.72039846]
[1729557441140,6.1126,163.6,163.51,46.72039846]
[1729557441368,6.1126,163.6,163.49,7.49197589]
[1729557441749,6.1129,163.59,163.49,7.49197589]
[1729557442065,30.5474,163.68,163.48,16.5216]
[1729557442066,0.1,163.64,163.48,16.5216]
[1729557442274,20.0,163.59,163.43,6.4485]
[1729557442448,20.1,163.59,163.43,6.4485]
[1729557442656,20.1,163.59,163.42,16.135]
[1729557442865,6.1173,163.47,163.42,16.135]
[1729557443059,0.1,163.58,163.42,16.135]
[1729557443276,0.1,163.55,163.38,6.4485]
[1729557443452,20.1,163.56,163.36,61.96439846]
[1729557443453,6.1187,163.44,163.36,15.244]
[1729557443980,20.0,163.52,163.36,61.96439846]
[1729557444153,6.1174,163.47,163.36,61.96439846]
[1729557444473,6.1177,163.46,163.36,61.96439846]
[1729557444972,20.0,163.52,163.36,61.96439846]
[1729557445160,6.119,163.43,163.36,15.244]
[1729557445471,6.1183,163.45,163.36,15.244]
[1729557445650,15.2905,163.5,163.36,15.244]
[1729557445852,20.0,163.52,163.36,15.244]
[1729557446061,6.1168,163.49,163.36,61.96439846]
[1729557446264,6.1203,163.53,163.39,46.72039846]
[1729557446579,6.1162,163.5,163.39,46.72039846]
[1729557447172,21.4522,163.58,163.42,46.72039846]
[1729557447371,6.1691,163.58,163.45,46.72039846]
[1729557447683,6.1155,163.52,163.39,46.72039846]
[1729557448280,30.6586,163.62,163.39,46.72039846]
[1729557448281,0.1,163.57,163.39,46.72039846]
[1729557448788,0.1,163.57,163.36,15.244]
[1729557448789,6.1173,163.47,163.36,61.96439846]
[1729557449068,6.1166,163.49,163.36,61.96439846]
[1729557449274,6.1169,163.48,163.36,61.96439846]
[1729557450454,6.1177,163.46,163.36,61.96439846]
[1729557450773,6.1177,163.47,163.36,61.96439846]
[1729557453590,15.2886,163.53,163.36,61.96439846]
[1729557454478,6.1171,163.48,163.36,61.96439846]
[1729557454690,20.2,163.57,163.36,61.96439846]
[1729557454993,6.1162,163.5,163.36,62.06439846]
[1729557455193,20.0,163.55,163.36,61.96439846]
[1729557455394,15.2867,163.54,163.36,61.96439846]
[1729557455571,6.1166,163.49,163.36,61.96439846]
[1729557455899,0.1,163.56,163.36,61.96439846]
[1729557456070,6.117,163.48,163.36,61.96439846]
[1729557457488,6.1166,163.49,163.36,61.96439846]
[1729557457680,20.1,163.57,163.36,61.96439846]
[1729557457681,15.2849,163.56,163.36,61.96439846]
[1729557457994,20.0,163.57,163.39,46.72039846]
[1729557458367,6.1166,163.49,163.36,61.96439846]
[1729557458578,6.1166,163.49,163.36,62.16439846]
[1729557458904,50.6689,163.57,163.36,61.96439846]
[1729557459071,20.0,163.54,163.36,15.244]
[1729557459272,6.1174,163.47,163.36,15.244]
[1729557459587,20.0,163.52,163.36,15.244]
[1729557459901,15.2877,163.53,163.36,61.96439846]
[1729557460197,15.2847,163.57,163.39,46.72039846]
[1729557460402,15.2803,163.61,163.43,6.5828]
[1729557460695,6.1135,163.58,163.45,46.72039846]
[1729557460900,6.5146,163.63,163.45,46.72039846]
[1729557461079,6.1129,163.59,163.46,16.3007]
[1729557461395,6.1132,163.58,163.46,16.3007]
[1729557461976,15.2802,163.61,163.46,16.3007]
[1729557462167,53.19294265,163.69,163.48,46.72039846]
[1729557462366,6.1109,163.65,163.51,46.72039846]
[1729557462591,6.1109,163.65,163.5,0.1]
[1729557462592,6.3113,163.69,163.54,46.72039846]
[1729557463203,6.1098,163.68,163.57,46.72039846]
[1729557463383,0.1,163.75,163.55,22.001]